bitfinex-derivatives/quotes_BTCF0:USTF0_20250709
["timestamp","ask_amount","ask_price","bid_price","bid_amount"]
[1752082024243,2.89351573,109270.0,109260.0,0.26142399]
[1752082024942,3.00315868,109270.0,109260.0,0.26142399]
[1752082025240,3.21043212,109270.0,109260.0,0.26142399]
[1752082025433,3.24163212,109270.0,109260.0,0.23062399]
[1752082025737,0.1830599,109240.0,109230.0,0.08422609]
[1752082025926,3.27933006,109240.0,109230.0,0.03253091]
[1752082026135,3.38173351,109240.0,109230.0,0.03253091]
[1752082026348,3.38173351,109240.0,109230.0,0.06383091]
[1752082027647,3.38173351,109240.0,109230.0,0.06683091]
[1752082027849,3.38173351,109240.0,109230.0,0.07183091]
[1752082028149,3.38713847,109240.0,109230.0,0.07183091]
[1752082028348,3.38913847,109240.0,109230.0,0.06883091]
[1752082028853,3.07262848,109240.0,109230.0,0.2688549]
[1752082029040,2.70462848,109240.0,109230.0,0.2638549]
[1752082029351,3.02567527,109240.0,109230.0,0.2638549]
[1752082029550,3.04862527,109240.0,109230.0,0.2638549]
[1752082030248,3.04862371,109240.0,109230.0,0.2638549]
[1752082030549,3.00862371,109240.0,109230.0,0.2638549]
[1752082034146,3.06862371,109240.0,109230.0,0.2638549]
[1752082035542,2.99862371,109240.0,109230.0,0.2638549]
[1752082039147,4.56862371,109240.0,109230.0,0.2638549]
[1752082040655,4.51862371,109240.0,109230.0,0.2638549]
[1752082043060,3.11422067,109240.0,109230.0,0.2801249]
[1752082043261,1.51127067,109240.0,109230.0,0.29085875]
[1752082043457,2.14611067,109240.0,109230.0,0.29085875]
[1752082043665,2.14607067,109240.0,109230.0,0.47393535]
[1752082043850,1.51127067,109240.0,109230.0,0.8376615]
[1752082044051,2.14611067,109240.0,109230.0,0.8576615]
[1752082045656,2.14611067,109240.0,109230.0,0.7976615]
[1752082046155,2.14611067,109240.0,109230.0,0.80839492]
[1752082046665,2.14607067,109240.0,109230.0,0.49839492]
[1752082046864,2.14607067,109240.0,109230.0,0.83839492]
[1752082047065,2.14607067,109240.0,109230.0,0.8276615]
[1752082047363,2.14603067,109240.0,109230.0,0.8276615]
[1752082048065,1.82350612,109240.0,109230.0,0.86839492]
[1752082048262,2.14062571,109240.0,109230.0,0.86839492]
[1752082048462,1.91154706,109240.0,109230.0,0.86839492]
[1752082048664,1.27678706,109240.0,109230.0,0.86839492]
[1752082048964,1.91154706,109240.0,109230.0,0.86839492]
[1752082049263,1.91154706,109240.0,109230.0,0.7976615]
[1752082049464,1.91154706,109240.0,109230.0,0.80839417]
[1752082051966,1.91154706,109240.0,109230.0,0.80839411]
[1752082052266,1.59442747,109240.0,109230.0,0.80839411]
[1752082052565,1.59438747,109240.0,109230.0,0.80839411]
[1752082053854,1.59438747,109240.0,109230.0,0.7976615]
[1752082054059,1.59438747,109240.0,109230.0,0.8276615]
[1752082054463,1.91150706,109240.0,109230.0,0.8276615]
[1752082055668,1.91150706,109240.0,109230.0,0.8476615]
[1752082057668,1.59438747,109240.0,109230.0,0.8476615]
[1752082057861,1.91150706,109240.0,109230.0,0.8476615]
[1752082060069,1.91150706,109240.0,109230.0,0.4876615]
[1752082060260,1.91150706,109240.0,109230.0,0.8376615]
[1752082060765,2.22830649,109240.0,109230.0,1.15462101]
[1752082061169,2.22830649,109240.0,109230.0,1.11462101]
[1752082063072,2.22830649,109240.0,109230.0,1.09016101]
[1752082063665,2.22830649,109240.0,109230.0,0.4632015]
[1752082063872,2.25146649,109240.0,109230.0,0.4632015]
[1752082069369,2.25146649,109240.0,109230.0,0.8232015]
[1752082069874,1.61674649,109240.0,109230.0,1.14016101]
[1752082070071,1.93418698,109240.0,109230.0,1.14016101]
[1752082070471,1.91102698,109240.0,109230.0,1.14016101]
[1752082070677,1.91102698,109240.0,109230.0,1.09016101]
[1752082073479,0.77660757,109240.0,109230.0,1.12383402]
[1752082073669,0.97633787,109240.0,109230.0,1.30692202]
[1752082074275,0.79327757,109240.0,109230.0,1.30692202]
[1752082074584,0.43247757,109240.0,109230.0,1.30692202]
[1752082075683,0.43251505,109240.0,109230.0,1.30692202]
[1752082075873,0.43251505,109240.0,109230.0,0.99692202]
[1752082076075,0.43251505,109240.0,109230.0,1.32692202]
[1752082076279,0.93253486,109240.0,109230.0,1.00996251]
[1752082076586,0.93253486,109240.0,109230.0,1.31692202]
[1752082076979,0.93253486,109240.0,109230.0,1.30618901]
[1752082077886,0.93253486,109240.0,109230.0,1.94042901]
[1752082078685,0.93253486,109240.0,109230.0,1.75734101]
[1752082078877,0.93253486,109240.0,109230.0,1.4403815]
[1752082078878,0.61557535,109240.0,109230.0,1.4403815]
[1752082079078,0.61557473,109240.0,109230.0,1.4403815]
[1752082079586,0.61557473,109240.0,109230.0,1.4703815]
[1752082080584,1.31646665,109240.0,109230.0,0.8269315]
[1752082080886,1.31646665,109240.0,109230.0,0.2738549]
[1752082081092,1.34896665,109240.0,109230.0,0.2431549]
[1752082081277,1.34906665,109240.0,109230.0,0.2431549]
[1752082081978,1.34906665,109240.0,109230.0,0.426232]
[1752082083983,1.03203473,109240.0,109230.0,0.442472]
[1752082084186,0.95970473,109240.0,109230.0,1.11386392]
[1752082084388,1.61053473,109240.0,109230.0,0.813172]
[1752082085680,1.61053473,109240.0,109230.0,0.833172]
[1752082087693,1.61053473,109240.0,109230.0,0.84390499]
[1752082087988,1.61053473,109240.0,109230.0,0.833172]
[1752082089289,1.61053473,109240.0,109230.0,0.793172]
[1752082090588,1.60987771,109240.0,109230.0,0.793172]
[1752082092489,1.92680963,109240.0,109230.0,0.793172]
[1752082093185,1.60987771,109240.0,109230.0,0.793172]
[1752082094091,1.60987771,109240.0,109230.0,0.843172]
[1752082094692,1.92680963,109240.0,109230.0,0.843172]
[1752082095692,1.92680963,109240.0,109230.0,0.803172]
[1752082095893,1.94938963,109240.0,109230.0,0.803172]
[1752082096795,1.58858963,109240.0,109230.0,0.803172]
[1752082096982,1.58858963,109240.0,109230.0,0.463242]
[1752082097292,1.58858963,109240.0,109230.0,0.2738549]
[1752082097495,1.61878963,109240.0,109230.0,0.2638549]
[1752082098588,1.61878963,109240.0,109230.0,0.4469319]
[1752082101093,1.61878963,109240.0,109230.0,0.8432419]
[1752082101305,1.58858963,109240.0,109230.0,0.8232419]
[1752082102888,1.58858963,109240.0,109230.0,0.4632419]
[1752082103197,1.58858963,109240.0,109230.0,0.2801649]
[1752082103700,1.58858963,109240.0,109230.0,0.4632419]
[1752082105301,1.58858963,109240.0,109230.0,0.8132419]
[1752082106202,0.63749771,109240.0,109230.0,0.8132419]
[1752082106393,1.58826963,109240.0,109230.0,0.8132419]
[1752082108695,1.58826963,109240.0,109230.0,0.6301649]
[1752082108897,1.58826963,109240.0,109230.0,0.2638549]
[1752082109095,1.57159963,109240.0,109230.0,0.2638549]
[1752082110505,1.57159963,109240.0,109230.0,0.4469319]
[1752082112601,1.54901963,109240.0,109230.0,0.4469319]
[1752082112905,1.57159963,109240.0,109230.0,0.2638549]
[1752082113701,1.57159963,109240.0,109230.0,0.4469319]
[1752082118007,1.57159963,109240.0,109230.0,0.2638549]
[1752082118606,1.57159963,109240.0,109230.0,0.4469319]
[1752082118908,1.57159963,109240.0,109230.0,0.2638549]
[1752082119612,1.57159963,109240.0,109230.0,0.4469319]
[1752082120211,1.57159963,109240.0,109230.0,0.2638549]
[1752082122320,1.57159963,109240.0,109230.0,0.4469319]
[1752082123203,1.57159963,109240.0,109230.0,0.2638549]
[1752082126717,1.57159963,109240.0,109230.0,0.4469319]
[1752082127718,1.57159963,109240.0,109230.0,0.2638549]
[1752082128719,1.57159963,109240.0,109230.0,0.4469319]
[1752082130322,1.57159963,109240.0,109230.0,0.2638549]
[1752082131218,1.57159963,109240.0,109230.0,0.4469319]
[1752082134716,1.57159963,109240.0,109230.0,0.2638549]
[1752082134914,1.88867023,109240.0,109230.0,0.2638549]
[1752082135411,1.88867023,109240.0,109230.0,0.4469319]
[1752082136211,1.97091569,109240.0,109230.0,0.4469319]
[1752082136519,1.97091569,109240.0,109230.0,0.2638549]
[1752082138622,1.97091569,109240.0,109230.0,0.7669319]
[1752082138812,1.97091569,109240.0,109230.0,0.4469319]
[1752082139212,1.88867023,109240.0,109230.0,0.2638549]
[1752082139623,1.88867023,109240.0,109230.0,0.4469319]
[1752082140222,1.88867023,109240.0,109230.0,0.4634219]
[1752082141326,1.25483023,109240.0,109230.0,0.7734219]
[1752082141519,1.25483023,109240.0,109230.0,0.8034219]
[1752082142012,1.25505023,109240.0,109230.0,1.12042316]
[1752082142223,1.23225023,109240.0,109230.0,1.12042316]
[1752082142425,1.54844897,109240.0,109230.0,1.12042316]
[1752082142925,1.54644897,109240.0,109230.0,1.12042316]
[1752082143127,1.54444897,109240.0,109230.0,1.12042316]
[1752082143314,1.56824897,109240.0,109230.0,1.12042316]
[1752082143518,1.86245023,109240.0,109230.0,1.12042316]
[1752082143828,1.88525023,109240.0,109230.0,1.12042316]
[1752082144127,1.88525023,109240.0,109230.0,1.11042316]
[1752082144128,1.86245023,109240.0,109230.0,1.11042316]
[1752082144726,1.88525023,109240.0,109230.0,1.11042316]
[1752082145532,1.88525023,109240.0,109230.0,1.10042316]
[1752082146029,1.88525023,109240.0,109230.0,0.7834219]
[1752082146828,1.88521273,109240.0,109230.0,0.7834219]
[1752082147126,1.88521273,109240.0,109230.0,1.10042316]
[1752082148029,1.88521273,109240.0,109230.0,1.1111562]
[1752082149135,1.88521273,109240.0,109230.0,1.1011562]
[1752082150428,1.88521273,109240.0,109230.0,0.78415494]
[1752082150620,1.88521273,109240.0,109230.0,0.80415494]
[1752082152729,1.25201273,109240.0,109230.0,0.80415494]
[1752082153030,1.88497273,109240.0,109230.0,1.1211562]
[1752082153531,1.88497273,109240.0,109230.0,0.80415494]
[1752082154129,1.88497273,109240.0,109230.0,0.82415494]
[1752082155321,1.88497273,109240.0,109230.0,0.8134219]
[1752082155521,1.88497273,109240.0,109230.0,0.8034219]
[1752082155723,1.88497273,109240.0,109230.0,0.81415493]
[1752082157931,1.88497273,109240.0,109230.0,0.8034219]
[1752082160734,1.88497273,109240.0,109230.0,0.8434219]
[1752082160936,1.88497273,109240.0,109230.0,0.8269319]
[1752082161132,1.88497273,109240.0,109230.0,0.8433919]
[1752082161332,1.88616273,109240.0,109230.0,0.8433919]
[1752082162235,1.88616273,109240.0,109230.0,0.4733918]
[1752082164334,1.88616273,109240.0,109230.0,0.4833918]
[1752082164535,1.88616273,109240.0,109230.0,0.8133918]
[1752082164841,1.86217273,109240.0,109230.0,0.7969318]
[1752082165043,1.25216021,109240.0,109230.0,0.7969318]
[1752082165341,1.88616273,109240.0,109230.0,0.8133918]
[1752082165544,1.88616273,109240.0,109230.0,0.8433918]
[1752082167144,1.88616273,109240.0,109230.0,0.8269318]
[1752082167349,2.24696273,109240.0,109230.0,0.8433918]
[1752082168157,1.61296021,109240.0,109230.0,0.8433918]
[1752082168359,2.24696273,109240.0,109230.0,0.8433918]
[1752082168848,2.24696273,109240.0,109230.0,0.8269318]
[1752082169046,2.24696273,109240.0,109230.0,0.4469318]
[1752082169252,2.24696273,109240.0,109230.0,0.8133918]
[1752082170558,2.24696273,109240.0,109230.0,0.8333918]
[1752082171160,1.61296021,109240.0,109230.0,0.8333918]
[1752082171353,2.24696273,109240.0,109230.0,0.8333918]
[1752082174059,2.24696273,109240.0,109230.0,0.8433918]
[1752082174358,1.61296021,109240.0,109230.0,0.8433918]
[1752082174553,2.24696273,109240.0,109230.0,0.8433918]
[1752082175756,1.61296021,109240.0,109230.0,0.8433918]
[1752082175957,2.24696273,109240.0,109230.0,0.8433918]
[1752082176953,2.56396399,109240.0,109230.0,0.2531549]
[1752082177259,2.67940945,109240.0,109230.0,0.2531549]
[1752082177456,2.67950945,109240.0,109230.0,0.2531549]
[1752082178556,2.36250819,109240.0,109230.0,0.2531549]
[1752082179261,2.67950945,109240.0,109230.0,0.2531549]
[1752082179461,2.36250819,109240.0,109230.0,0.2331549]
[1752082182156,0.1830769,109230.0,109220.0,0.00013694]
[1752082182350,0.0457749,109220.0,109200.0,0.03473142]
[1752082182549,2.83818292,109210.0,109200.0,0.40553142]
[1752082182762,3.25137183,109210.0,109200.0,0.40553142]
[1752082182965,3.28267183,109210.0,109200.0,0.40553142]
[1752082183262,3.28267183,109210.0,109200.0,0.19553142]
[1752082183860,3.28956083,109210.0,109200.0,0.19853142]
[1752082184164,3.28956083,109210.0,109200.0,0.20053142]
[1752082184165,3.23956083,109210.0,109200.0,0.20053142]
[1752082184758,3.31131492,109210.0,109200.0,0.20053142]
[1752082185164,2.99457108,109210.0,109200.0,0.20053142]
[1752082185566,2.99457108,109210.0,109200.0,0.17053142]
[1752082186166,2.96138217,109210.0,109200.0,0.17053142]
[1752082188463,2.96138217,109210.0,109200.0,0.07053142]
[1752082190668,2.98138217,109210.0,109200.0,0.07053142]
[1752082194272,2.94138217,109210.0,109200.0,0.07053142]
[1752082195673,2.95138217,109210.0,109200.0,0.07053142]
[1752082199172,3.00138217,109210.0,109200.0,0.07053142]
[1752082200570,2.99138217,109210.0,109200.0,0.07053142]
[1752082200979,2.96008217,109210.0,109200.0,0.07053142]
[1752082204082,2.88525217,109210.0,109200.0,0.07053142]
[1752082204876,2.56799349,109210.0,109200.0,0.08628142]
[1752082205185,2.56525217,109210.0,109200.0,0.08628142]
[1752082206882,2.56517853,109210.0,109200.0,0.08628142]
[1752082208976,2.60018864,109210.0,109200.0,0.08628142]
[1752082211887,2.60018104,109210.0,109200.0,0.08628142]
[1752082212087,3.80637512,109210.0,109200.0,2e-08]
[1752082212392,0.30051908,109200.0,109190.0,0.00183159]
[1752082212592,2.32684671,109200.0,109190.0,0.00183159]
[1752082212785,2.33552671,109200.0,109190.0,0.00183159]
[1752082214077,1.99577167,109200.0,109190.0,0.00183159]
[1752082214282,1.86257167,109200.0,109190.0,0.01706159]
[1752082214796,1.86273787,109200.0,109190.0,0.01706159]
[1752082215494,1.86273787,109200.0,109190.0,0.08026159]
[1752082215791,1.96273787,109200.0,109190.0,0.08026159]
[1752082216188,1.99433787,109200.0,109190.0,0.08026159]
[1752082220184,1.35980159,109200.0,109190.0,0.08026159]
[1752082220493,1.86273787,109200.0,109190.0,0.08026159]
[1752082220690,0.91358973,109200.0,109190.0,0.66700469]
[1752082220894,1.55927973,109200.0,109190.0,0.66700469]
[1752082221097,1.54538973,109200.0,109190.0,0.66700469]
[1752082222193,1.54538973,109200.0,109190.0,0.62817469]
[1752082222396,1.54538973,109200.0,109190.0,0.66700469]
[1752082222585,1.54538973,109200.0,109190.0,0.48386159]
[1752082223085,1.54538973,109200.0,109190.0,0.66700449]
[1752082224393,1.54538973,109200.0,109190.0,0.48386159]
[1752082225489,1.54538973,109200.0,109190.0,0.28700449]
[1752082225687,1.54538973,109200.0,109190.0,0.60700449]
[1752082226696,1.54538973,109200.0,109190.0,0.42386159]
[1752082228893,0.91358973,109200.0,109190.0,0.42386159]
[1752082229092,1.54530973,109200.0,109190.0,0.42386159]
[1752082229287,1.54530973,109200.0,109190.0,0.60700449]
[1752082229598,1.54530973,109200.0,109190.0,0.61700449]
[1752082230496,1.54530973,109200.0,109190.0,0.28700449]
[1752082230695,1.54530973,109200.0,109190.0,0.48386159]
[1752082231297,1.54530973,109200.0,109190.0,0.10386159]
[1752082232196,1.54530973,109200.0,109190.0,0.60700449]
[1752082232397,1.54530973,109200.0,109190.0,0.28700449]
[1752082232896,1.54530973,109200.0,109190.0,0.42386159]
[1752082233804,1.54530973,109200.0,109190.0,0.60700449]
[1752082234101,1.54530973,109200.0,109190.0,0.59700449]
[1752082234801,1.86249353,109200.0,109190.0,0.59700449]
[1752082234996,1.86249353,109200.0,109190.0,0.28700449]
[1752082235801,1.86249353,109200.0,109190.0,0.66700449]
[1752082236102,1.86249353,109200.0,109190.0,0.28700449]
[1752082236293,1.86249353,109200.0,109190.0,0.10386159]
[1752082236497,1.86249353,109200.0,109190.0,0.28700459]
[1752082236897,1.86250068,109200.0,109190.0,0.28700459]
[1752082237297,1.86250068,109200.0,109190.0,0.62700459]
[1752082237501,1.86250068,109200.0,109190.0,0.28700459]
[1752082237701,1.86250068,109200.0,109190.0,0.62700459]
[1752082238201,1.94474614,109200.0,109190.0,0.62700459]
[1752082239096,1.94474614,109200.0,109190.0,0.65700459]
[1752082240495,1.94474614,109200.0,109190.0,0.28700459]
[1752082240694,1.94474614,109200.0,109190.0,0.63700459]
[1752082241292,1.94474614,109200.0,109190.0,0.10386159]
[1752082241497,1.94474614,109200.0,109190.0,0.40026159]
[1752082242105,1.94474614,109200.0,109190.0,0.41026159]
[1752082242601,1.94511726,109200.0,109190.0,0.41026159]
[1752082244106,1.94511726,109200.0,109190.0,0.42026159]
[1752082244406,1.94511726,109200.0,109190.0,0.60340469]
[1752082245302,0.99617129,109200.0,109190.0,0.94352066]
[1752082245606,1.8765618,109200.0,109190.0,0.93352066]
[1752082246004,1.8765618,109200.0,109190.0,0.61629469]
[1752082249003,1.24210986,109200.0,109190.0,0.61629469]
[1752082249207,1.55933583,109200.0,109190.0,0.94352066]
[1752082249809,1.55933583,109200.0,109190.0,0.62629469]
[1752082250012,1.55933583,109200.0,109190.0,0.94352066]
[1752082250309,0.49581902,109200.0,109190.0,2.20636066]
[1752082250506,0.59669986,109200.0,109190.0,1.86636066]
[1752082250701,0.59669986,109200.0,109190.0,2.22636066]
[1752082253213,0.23589986,109200.0,109190.0,2.22636066]
[1752082253406,0.59669986,109200.0,109190.0,2.22636066]
[1752082254005,0.59669986,109200.0,109190.0,1.86636066]
[1752082254211,0.59669986,109200.0,109190.0,2.21636066]
[1752082255509,0.23589986,109200.0,109190.0,1.86636066]
[1752082255816,0.59669986,109200.0,109190.0,2.22636066]
[1752082256814,0.59669986,109200.0,109190.0,2.23370496]
[1752082259319,0.59669986,109200.0,109190.0,2.24370496]
[1752082260018,0.56131908,109200.0,109190.0,2.24370496]
[1752082260211,0.59664446,109200.0,109190.0,2.24370496]
[1752082260613,0.59664446,109200.0,109190.0,2.19370496]
[1752082261121,0.59664446,109200.0,109190.0,2.18636066]
[1752082262012,0.91387043,109200.0,109190.0,2.18636066]
[1752082262214,0.92776043,109200.0,109190.0,2.18636066]
[1752082263019,0.61053446,109200.0,109190.0,2.18636066]
[1752082263221,0.92776043,109200.0,109190.0,2.18636066]
[1752082263421,0.61053446,109200.0,109190.0,2.19416554]
[1752082263719,0.61053446,109200.0,109190.0,2.18636066]
[1752082264019,0.61053446,109200.0,109190.0,1.86636066]
[1752082264222,0.61053446,109200.0,109190.0,2.21636066]
[1752082265523,0.61053446,109200.0,109190.0,2.23636066]
[1752082266724,0.41351816,109200.0,109190.0,2.23636066]
[1752082266911,0.59664446,109200.0,109190.0,2.23636066]
[1752082268117,0.59664446,109200.0,109190.0,2.24390584]
[1752082269819,0.59664446,109200.0,109190.0,2.25814218]
[1752082270426,0.59664446,109200.0,109190.0,2.25814274]
[1752082270619,0.59664446,109200.0,109190.0,2.23814274]
[1752082271122,0.59664446,109200.0,109190.0,1.88814274]
[1752082271425,0.59664446,109200.0,109190.0,2.22814274]
[1752082272219,0.59664446,109200.0,109190.0,2.22059756]
[1752082273718,0.41351816,109200.0,109190.0,2.22059756]
[1752082273918,0.59664446,109200.0,109190.0,2.22059756]
[1752082274120,0.59664446,109200.0,109190.0,2.21059756]
[1752082274529,0.59664446,109200.0,109190.0,2.21065281]
[1752082275526,0.59664446,109200.0,109190.0,1.88065281]
[1752082275729,0.41351816,109200.0,109190.0,2.26065281]
[1752082276227,0.59664446,109200.0,109190.0,2.26065281]
[1752082279130,0.59664446,109200.0,109190.0,2.22065281]
[1752082279924,0.59664446,109200.0,109190.0,1.90342684]
[1752082280126,0.59664446,109200.0,109190.0,2.22065281]
[1752082280833,0.59664446,109200.0,109190.0,1.88065281]
[1752082281034,0.59664446,109200.0,109190.0,2.23065281]
[1752082282034,0.41351816,109200.0,109190.0,2.23065281]
[1752082283231,0.59664446,109200.0,109190.0,2.23065281]
[1752082283735,0.41351816,109200.0,109190.0,2.2306752]
[1752082283935,0.59664446,109200.0,109190.0,2.2306752]
[1752082284132,0.41351816,109200.0,109190.0,2.2306752]
[1752082284526,0.41351816,109200.0,109190.0,2.2106752]
[1752082285534,0.41351816,109200.0,109190.0,2.2306752]
[1752082285934,0.59664446,109200.0,109190.0,2.2306752]
[1752082286128,0.59664446,109200.0,109190.0,1.91344923]
[1752082286433,0.91387043,109200.0,109190.0,2.2306752]
[1752082286834,0.91387043,109200.0,109190.0,2.23067324]
[1752082287436,0.59664446,109200.0,109190.0,2.23067324]
[1752082287734,0.91387043,109200.0,109190.0,2.23067324]
[1752082288137,0.41351816,109200.0,109190.0,2.23067324]
[1752082289737,0.05271816,109200.0,109190.0,2.21641591]
[1752082289942,0.05271816,109200.0,109190.0,2.54789785]
[1752082290126,0.5439096,109210.0,109200.0,0.1831264]
[1752082290324,0.57897734,109210.0,109200.0,1.28623431]
[1752082291240,0.57897734,109210.0,109200.0,1.25623431]
[1752082292040,0.57897734,109210.0,109200.0,1.25723431]
[1752082293846,0.59286734,109210.0,109200.0,1.25723431]
[1752082294344,0.40975774,109210.0,109200.0,1.25723431]
[1752082294637,0.39586774,109210.0,109200.0,1.25723431]
[1752082294844,0.39586774,109210.0,109200.0,1.27723431]
[1752082295942,0.03506774,109210.0,109200.0,1.27723431]
[1752082298540,0.39586774,109210.0,109200.0,1.27723431]
[1752082298745,0.03506774,109210.0,109200.0,1.27723431]
[1752082299654,0.37828695,109220.0,109210.0,0.1831096]
[1752082299947,0.37828695,109220.0,109210.0,2.23903154]
[1752082301148,0.38028695,109220.0,109210.0,2.22903154]
[1752082301450,0.38128695,109220.0,109210.0,2.22903154]
[1752082301634,0.56437955,109220.0,109210.0,2.22903154]
[1752082301840,0.38128695,109220.0,109210.0,2.30379574]
[1752082302351,0.38128695,109220.0,109210.0,2.22903154]
[1752082302750,0.37928695,109220.0,109210.0,2.22903154]
[1752082303246,0.37828695,109220.0,109210.0,2.23003154]
[1752082304257,0.36093694,109220.0,109210.0,2.23003154]
[1752082304552,0.36093694,109220.0,109210.0,2.21003154]
[1752082305556,0.36093694,109220.0,109210.0,2.20003154]
[1752082305743,0.36093694,109220.0,109210.0,2.20752333]
[1752082307152,0.36093694,109220.0,109210.0,2.27953782]
[1752082307538,0.00013694,109220.0,109210.0,2.59676379]
[1752082307743,0.00013694,109220.0,109210.0,2.27953782]
[1752082309152,0.00013694,109220.0,109210.0,2.29953782]
[1752082310554,0.00013694,109220.0,109210.0,2.33953782]
[1752082310852,0.51434551,109220.0,109210.0,2.33204603]
[1752082311054,0.54734551,109220.0,109210.0,2.33204603]
[1752082311248,1.22537148,109220.0,109210.0,2.28523603]
[1752082311751,0.94257628,109220.0,109210.0,2.26158603]
[1752082312053,0.94257628,109220.0,109210.0,2.28523603]
[1752082312054,1.25980225,109220.0,109210.0,2.28523603]
[1752082312253,0.94257628,109220.0,109210.0,2.28523603]
[1752082314150,0.94259381,109220.0,109210.0,2.25523603]
[1752082315454,0.94259381,109220.0,109210.0,0.99435603]
[1752082315657,0.94259381,109220.0,109210.0,1.61024603]
[1752082316954,0.94259381,109220.0,109210.0,1.64054603]
[1752082317148,0.94259381,109220.0,109210.0,1.62629006]
[1752082317755,1.25981978,109220.0,109210.0,1.26295409]
[1752082317957,0.94259381,109220.0,109210.0,1.58018006]
[1752082318161,1.88985978,109220.0,109210.0,0.34465]
[1752082318358,2.32023121,109220.0,109210.0,0.02465]
[1752082318563,0.1831261,109200.0,109190.0,0.26259984]
[1752082318862,1.5909809,109200.0,109190.0,1.24263984]
[1752082319061,1.6526809,109200.0,109190.0,1.21263984]
[1752082319356,1.6526809,109200.0,109190.0,0.95192684]
[1752082319560,2.2827209,109200.0,109190.0,0.32188684]
[1752082320061,2.2847209,109200.0,109190.0,0.32188684]
[1752082320557,2.2847209,109200.0,109190.0,0.23188684]
[1752082320762,2.2847209,109200.0,109190.0,0.04188684]
[1752082321062,2.2857209,109200.0,109190.0,0.04188684]
[1752082321254,2.3083109,109200.0,109190.0,0.04188684]
[1752082321454,1.6782709,109200.0,109190.0,0.04188684]
[1752082321757,2.3083109,109200.0,109190.0,0.04188684]
[1752082321964,2.4083109,109200.0,109190.0,0.04188684]
[1752082322962,2.4084819,109200.0,109190.0,0.04188684]
[1752082324166,0.1831597,109180.0,109170.0,0.2144629]
[1752082324465,1.90759646,109180.0,109170.0,0.5402729]
[1752082324761,1.96839646,109180.0,109170.0,0.5402729]
[1752082325764,1.96839646,109180.0,109170.0,0.5822729]
[1752082326066,1.96839646,109180.0,109170.0,0.5842729]
[1752082326364,1.96839646,109180.0,109170.0,0.69413314]
[1752082327364,1.9763697,109180.0,109170.0,0.69413314]
[1752082328564,1.9763697,109180.0,109170.0,0.5842729]
[1752082329561,1.9463697,109180.0,109170.0,0.5842729]
[1752082330765,1.9463697,109180.0,109170.0,0.5742729]
[1752082332268,1.93839646,109180.0,109170.0,0.6049729]
[1752082333769,1.94642743,109180.0,109170.0,0.6049729]
[1752082334069,1.94642743,109180.0,109170.0,0.2649729]
[1752082334271,1.94642743,109180.0,109170.0,0.5749729]
[1752082335676,1.94642743,109180.0,109170.0,0.6249729]
[1752082336171,1.98081947,109180.0,109170.0,0.6249729]
[1752082340280,1.94642743,109180.0,109170.0,0.6249729]
[1752082340681,1.94642743,109180.0,109170.0,0.6349729]
[1752082341075,1.86956646,109180.0,109170.0,0.6349729]
[1752082341777,1.87762474,109180.0,109170.0,0.6349729]
[1752082342779,1.87762474,109180.0,109170.0,0.95228338]
[1752082342780,1.87762375,109180.0,109170.0,0.95228338]
[1752082344083,1.87762375,109180.0,109170.0,0.90228338]
[1752082344984,1.87762375,109180.0,109170.0,0.5849729]
[1752082345284,2.19493423,109180.0,109170.0,0.5849729]
[1752082345484,2.21777423,109180.0,109170.0,0.5849729]
[1752082345686,2.21777423,109180.0,109170.0,0.6249729]
[1752082346084,2.25215053,109180.0,109170.0,0.6249729]
[1752082346481,1.62211053,109180.0,109170.0,0.6249729]
[1752082346683,0.92221519,109180.0,109170.0,0.94247338]
[1752082346984,0.56141519,109180.0,109170.0,1.25978386]
[1752082347285,0.89516567,109180.0,109170.0,0.94247338]
[1752082347879,0.92954995,109180.0,109170.0,0.94247338]
[1752082348692,0.92954995,109180.0,109170.0,0.6251629]
[1752082348879,0.92954995,109180.0,109170.0,0.94247338]
[1752082349892,0.92954995,109180.0,109170.0,0.6251629]
[1752082350187,0.91310995,109180.0,109170.0,0.96674338]
[1752082350381,0.92954995,109180.0,109170.0,0.96674338]
[1752082350581,0.92954995,109180.0,109170.0,0.60674338]
[1752082350788,0.57785519,109180.0,109170.0,0.9166905]
[1752082351790,0.61226066,109180.0,109170.0,0.9166905]
[1752082352284,0.61226066,109180.0,109170.0,0.5751629]
[1752082352493,0.95235826,109180.0,109170.0,0.5591766]
[1752082352790,0.98245826,109180.0,109170.0,0.5751766]
[1752082353790,0.98245826,109180.0,109170.0,0.392]
[1752082353991,0.98245826,109180.0,109170.0,0.5751766]
[1752082354587,0.98245826,109180.0,109170.0,0.392]
[1752082354988,0.98245826,109180.0,109170.0,0.5751766]
[1752082355392,0.98245826,109180.0,109170.0,0.392]
[1752082355592,0.98245826,109180.0,109170.0,0.402]
[1752082355993,0.98245826,109180.0,109170.0,0.5851766]
[1752082356193,0.98245826,109180.0,109170.0,0.402]
[1752082356490,0.98245826,109180.0,109170.0,0.5851766]
[1752082359186,0.98245826,109180.0,109170.0,0.452]
[1752082360086,0.98245826,109180.0,109170.0,0.6351767]
[1752082360988,0.98245826,109180.0,109170.0,0.452]
[1752082361191,0.98245826,109180.0,109170.0,0.4213]
[1752082361496,0.98245826,109180.0,109170.0,0.0353]
[1752082361999,1.01335826,109180.0,109170.0,0.0353]
[1752082362294,1.01335826,109180.0,109170.0,0.004]
[1752082362493,1.92380786,109180.0,109170.0,0.004]
[1752082363087,1.90870786,109180.0,109170.0,0.004]
[1752082364091,1.93870786,109180.0,109170.0,0.004]
[1752082364498,2.18870786,109180.0,109170.0,0.004]
[1752082364700,2.26456364,109180.0,109170.0,0.004]
[1752082365197,1.28145026,109180.0,109170.0,0.004]
[1752082365392,1.55145026,109180.0,109170.0,0.004]
[1752082365598,2.22129026,109180.0,109170.0,0.004]
[1752082366404,2.66079332,109180.0,109170.0,0.004]
[1752082366596,2.34353572,109180.0,109170.0,0.004]
[1752082367704,2.66079332,109180.0,109170.0,0.004]
[1752082368600,2.47760132,109180.0,109170.0,0.004]
[1752082368800,2.66079332,109180.0,109170.0,0.004]
[1752082369608,2.47760132,109180.0,109170.0,0.004]
[1752082370007,2.48760132,109180.0,109170.0,0.004]
[1752082370906,2.12760132,109180.0,109170.0,1e-07]
[1752082371112,0.1831758,109170.0,109160.0,0.00183209]
[1752082371409,1.77424647,109170.0,109160.0,0.00183209]
[1752082371801,1.85649193,109170.0,109160.0,0.00183209]
[1752082372408,1.85949193,109170.0,109160.0,0.00183209]
[1752082373197,1.86049193,109170.0,109160.0,0.00183209]
[1752082373403,1.86049193,109170.0,109160.0,9e-08]
[1752082373708,0.30045935,109160.0,109150.0,6e-08]
[1752082374013,2.26215239,109160.0,109150.0,6e-08]
[1752082374203,2.44537639,109160.0,109150.0,6e-08]
[1752082374512,2.48537639,109160.0,109150.0,6e-08]
[1752082374810,2.40313093,109160.0,109150.0,6e-08]
[1752082375013,2.40913093,109160.0,109150.0,6e-08]
[1752082375401,1.72496693,109160.0,109150.0,6e-08]
[1752082375607,1.92925242,109160.0,109150.0,0.03110006]
[1752082375907,0.98937242,109160.0,109150.0,0.06160006]
[1752082376112,1.61925242,109160.0,109150.0,0.06160006]